bitfinex/quotes_BTCUSD_20250822
["timestamp","ask_amount","ask_price","bid_price","bid_amount"]
[1755883159511,1.1039538,117010.0,117000.0,0.03050964]
[1755883160036,0.34,117000.0,116990.0,0.07625994]
[1755883160242,1.2179688,117000.0,116990.0,0.12332994]
[1755883160431,1.2179688,117000.0,116990.0,0.12119994]
[1755883161044,0.34201,117000.0,116990.0,0.12332994]
[1755883161248,1.2179688,117000.0,116990.0,0.12332994]
[1755883161449,1.2189688,117000.0,116990.0,0.07757964]
[1755883161646,1.2199688,117000.0,116990.0,0.07544964]
[1755883161851,1.2231488,117000.0,116990.0,0.12119994]
[1755883162266,0.342,117000.0,116990.0,0.12649994]
[1755883162606,0.7799794,117000.0,116990.0,0.12649994]
[1755883162854,0.7819894,117000.0,116990.0,0.12332994]
[1755883163054,1.2199688,117000.0,116990.0,0.12332994]
[1755883163264,0.9698994,117000.0,116990.0,0.12649994]
[1755883164309,0.7799794,117000.0,116990.0,0.21338469]
[1755883164516,0.002,117000.0,116990.0,0.20032407]
[1755883164739,0.002,117000.0,116990.0,0.40032407]
[1755883164740,0.19168,117000.0,116990.0,0.40032407]
[1755883164943,0.19176,117000.0,116990.0,0.41559297]
[1755883165147,0.002,117000.0,116990.0,0.4252233]
[1755883165365,0.002,117000.0,116990.0,0.50110146]
[1755883165548,0.18976,117010.0,116990.0,0.50110146]
[1755883165736,0.18976,117010.0,117000.0,0.15098668]
[1755883165945,0.18976,117010.0,117000.0,0.20019343]
[1755883166141,0.6277394,117010.0,117000.0,0.19805668]
[1755883166291,0.18976,117010.0,117000.0,0.19805668]
[1755883166492,0.6277394,117010.0,117000.0,0.19805668]
[1755883167088,0.6277394,117010.0,117000.0,0.23671453]
[1755883167518,0.6277394,117010.0,117000.0,0.25416355]
[1755883168099,0.6273794,117010.0,117000.0,0.25416355]
[1755883168562,0.6273794,117010.0,117000.0,0.23671453]
[1755883168761,0.6273794,117010.0,117000.0,0.23771453]
[1755883168965,0.1894,117010.0,117000.0,0.23771453]
[1755883169186,0.6273794,117010.0,117000.0,0.23771453]
[1755883169527,0.1894,117010.0,117000.0,0.23771453]
[1755883169878,0.6273794,117010.0,117000.0,0.23771453]
[1755883170829,0.1894,117010.0,117000.0,0.25516355]
[1755883171243,0.6273794,117010.0,117000.0,0.25516355]
[1755883172068,0.1894,117010.0,117000.0,0.25516355]
[1755883172273,0.6273794,117010.0,117000.0,0.25516355]
[1755883172484,0.365678,117040.0,117010.0,0.01744902]
[1755883172689,0.4381237,117040.0,117030.0,0.03261503]
[1755883172891,0.6268437,117040.0,117030.0,0.13474229]
[1755883173111,0.1888643,117040.0,117030.0,0.13713475]
[1755883173235,0.9668437,117040.0,117030.0,0.13713475]
[1755883173813,0.9718137,117040.0,117030.0,0.13395475]
[1755883174288,0.9688137,117040.0,117030.0,0.13395475]
[1755883174492,0.5308343,117040.0,117030.0,0.13395475]
[1755883174749,0.9698137,117040.0,117030.0,0.13395475]
[1755883174926,0.9739937,117040.0,117030.0,0.17753516]
[1755883175062,0.9729937,117040.0,117030.0,0.09065041]
[1755883175476,0.9739937,117040.0,117030.0,0.09065041]
[1755883175890,0.9708137,117040.0,117030.0,0.17957516]
[1755883176252,0.9688437,117040.0,117030.0,0.18275516]
[1755883176669,0.0021443,117040.0,117030.0,0.20020418]
[1755883176904,0.1904243,117040.0,117030.0,0.15449377]
[1755883177070,0.0021443,117040.0,117030.0,0.23464433]
[1755883177227,0.0021443,117040.0,117030.0,0.30102146]
[1755883177426,0.0021443,117040.0,117030.0,0.2251433]
[1755883177692,0.4401237,117040.0,117030.0,0.15449377]
[1755883177846,0.0021443,117040.0,117030.0,0.15449377]
[1755883178045,0.4401237,117040.0,117030.0,0.15449377]
[1755883178454,0.4401237,117040.0,117030.0,0.21537215]
[1755883178872,0.0021443,117040.0,117030.0,0.21537215]
[1755883179078,0.4401237,117040.0,117030.0,0.21537215]
[1755883180850,0.4401237,117040.0,117030.0,0.25455516]
[1755883181660,0.6278837,117040.0,117030.0,0.25455516]
[1755883182713,0.6298537,117040.0,117030.0,0.25137516]
[1755883182948,0.6298537,117040.0,117030.0,0.18845678]
[1755883183153,0.6298537,117040.0,117030.0,0.17100776]
[1755883183326,0.6330337,117040.0,117030.0,0.21662799]
[1755883183530,0.6330337,117040.0,117030.0,0.17100776]
[1755883184110,0.1918743,117040.0,117030.0,0.17100776]
[1755883184353,0.6298537,117040.0,117030.0,0.17100776]
[1755883184560,0.6330337,117040.0,117030.0,0.20785178]
[1755883184757,0.6330337,117040.0,117030.0,0.07535132]
[1755883185586,0.1918743,117040.0,117030.0,0.07535132]
[1755883185785,0.1917143,117040.0,117030.0,0.07535132]
[1755883186000,0.6296937,117040.0,117030.0,0.16223607]
[1755883186147,0.1917143,117040.0,117030.0,0.20989178]
[1755883186345,0.6296937,117040.0,117030.0,0.20989178]
[1755883186535,0.4401237,117040.0,117030.0,0.21307178]
[1755883186744,0.1898643,117040.0,117030.0,0.21307178]
[1755883187348,0.0021443,117040.0,117030.0,0.20010948]
[1755883187541,0.1899843,117040.0,117030.0,0.20010948]
[1755883187677,0.1899843,117040.0,117030.0,0.23836863]
[1755883188106,0.1899843,117040.0,117030.0,0.43836863]
[1755883188308,0.6279637,117040.0,117030.0,0.43836863]
[1755883188733,0.1899843,117040.0,117030.0,0.43836863]
[1755883188957,0.1899843,117040.0,117030.0,0.39275292]
[1755883189156,0.1899843,117040.0,117030.0,0.43618228]
[1755883189377,0.1899843,117040.0,117030.0,0.50683181]
[1755883190405,0.0021443,117040.0,117030.0,0.71196083]
[1755883190906,0.0021443,117040.0,117030.0,0.65108245]
[1755883191109,0.0021443,117040.0,117030.0,0.60609992]
[1755883191306,0.0021443,117040.0,117030.0,0.68197808]
[1755883191646,0.0021443,117040.0,117030.0,0.66452906]
[1755883191878,0.0011443,117040.0,117030.0,0.66452906]
[1755883192084,0.0001443,117040.0,117030.0,0.66452906]
[1755883192291,0.4381237,117040.0,117030.0,0.66652906]
[1755883192502,0.0001443,117040.0,117030.0,0.47984906]
[1755883192702,0.0001443,117040.0,117030.0,0.45418206]
[1755883192911,0.0001443,117040.0,117030.0,0.43914616]
[1755883193152,0.4381237,117040.0,117030.0,0.3783039]
[1755883193359,0.0001443,117040.0,117030.0,0.3783039]
[1755883193620,0.4381237,117040.0,117030.0,0.45418206]
[1755883193815,0.0001443,117040.0,117030.0,0.45418206]
[1755883194015,0.4381237,117040.0,117030.0,0.45418206]
[1755883194423,0.0001443,117040.0,117030.0,0.45418206]
[1755883194828,0.4381237,117040.0,117030.0,0.45418206]
[1755883195033,0.4381237,117040.0,117030.0,0.65418206]
[1755883195236,0.0001443,117040.0,117030.0,0.67163108]
[1755883196831,0.0001443,117040.0,117030.0,0.47163108]
[1755883197045,0.4381237,117040.0,117030.0,0.47163108]
[1755883197478,0.4381237,117040.0,117030.0,0.27163108]
[1755883197694,0.4381237,117040.0,117030.0,0.45418206]
[1755883197900,0.4381237,117040.0,117030.0,0.47985006]
[1755883198332,0.0001443,117040.0,117030.0,0.47985006]
[1755883198546,0.4381237,117040.0,117030.0,0.47985006]
[1755883199677,0.0001443,117040.0,117030.0,0.47985006]
[1755883199911,0.4381237,117040.0,117030.0,0.47985006]
[1755883200343,0.4400937,117040.0,117030.0,0.23637091]
[1755883200617,0.4432737,117040.0,117030.0,0.21070291]
[1755883201050,0.6312737,117040.0,117030.0,0.21070291]
[1755883201283,0.9712737,117040.0,117030.0,0.13482475]
[1755883201517,0.9712737,117040.0,117030.0,0.10888108]
[1755883201756,1.4092531,117040.0,117020.0,0.06094108]
[1755883201988,1.2159588,117030.0,117020.0,0.04574447]
[1755883202208,1.3179288,117030.0,116980.0,0.08661908]
[1755883202428,0.7779794,117000.0,116990.0,0.08688475]
[1755883202654,0.34,116990.0,116980.0,0.08688475]
[1755883202883,0.34,116990.0,116950.0,0.13681924]
[1755883202884,0.86919905,116990.0,116950.0,0.13681924]
[1755883203128,0.42884965,116990.0,116960.0,0.08688475]
[1755883203342,0.00237,116980.0,116960.0,0.08688475]
[1755883203563,0.53182,116970.0,116960.0,0.08688475]
[1755883203774,0.588049,116970.0,116930.0,0.09633953]
[1755883203979,0.7779794,116950.0,116940.0,0.08688475]
[1755883204195,1.2179488,116950.0,116930.0,0.15608953]
[1755883204405,0.9686594,116950.0,116940.0,0.00501]
[1755883204605,0.53267,116950.0,116940.0,0.08746]
[1755883204848,0.53503,116950.0,116940.0,0.17232475]
[1755883205044,0.60619,116950.0,116940.0,0.08544]
[1755883205462,1.4851488,116950.0,116940.0,0.08544]
[1755883205687,0.69405965,116950.0,116940.0,0.08544]
[1755883205897,1.57001845,116950.0,116940.0,0.08544]
[1755883206121,1.57301845,116950.0,116940.0,0.08544]
[1755883206331,0.69705965,116950.0,116940.0,0.08544]
[1755883206551,0.69469965,116950.0,116940.0,0.08544]
[1755883206769,0.60783,116950.0,116940.0,0.08544]
[1755883207053,0.41516,116950.0,116940.0,0.08746]
[1755883207264,0.60954,116950.0,116940.0,0.08746]
[1755883207478,1.4878688,116950.0,116940.0,0.08544]
[1755883207680,1.57473845,116950.0,116940.0,0.08544]
[1755883208102,1.4854988,116950.0,116940.0,0.08544]
[1755883208376,1.4837988,116950.0,116940.0,0.17733475]
[1755883208788,1.4837988,116950.0,116940.0,0.17434475]
[1755883208998,1.4857788,116950.0,116940.0,0.17232475]
[1755883209206,1.4881488,116950.0,116940.0,0.17232475]
[1755883209419,0.60982,116950.0,116940.0,0.17232475]
[1755883209854,1.4857888,116950.0,116940.0,0.17232475]
[1755883210063,0.60983,116950.0,116940.0,0.17232475]
[1755883210273,1.4857888,116950.0,116940.0,0.17232475]
[1755883210485,0.60784,116950.0,116940.0,0.17434475]
[1755883210709,0.9753794,116950.0,116940.0,0.17733475]
[1755883210949,0.4419794,116950.0,116940.0,0.17733475]
[1755883211165,0.004,116950.0,116940.0,0.37733475]
[1755883211368,0.004,116950.0,116940.0,0.54478377]
[1755883211580,0.003,116950.0,116940.0,0.57047077]
[1755883211863,0.4379794,116950.0,116940.0,0.37047077]
[1755883212098,0.4379794,116950.0,116940.0,0.35302175]
[1755883212322,0.4379794,116950.0,116940.0,0.20402175]
[1755883213277,0.34,116970.0,116940.0,0.20402175]
[1755883213537,0.4379794,116950.0,116940.0,0.114147]
[1755883213773,0.34,116970.0,116940.0,0.11628484]
[1755883214014,0.4379794,116950.0,116940.0,0.11628484]
[1755883214249,0.4379794,116950.0,116940.0,0.115147]
[1755883214674,0.4379794,116950.0,116940.0,0.118137]
[1755883214927,0.4379794,116950.0,116940.0,0.117137]
[1755883215385,0.341,116970.0,116940.0,0.117137]
[1755883215609,0.4379794,116950.0,116940.0,0.114147]
[1755883215845,0.34,116970.0,116950.0,0.00299]
[1755883216115,0.4379794,116960.0,116950.0,0.09056766]
[1755883216377,0.4379794,116960.0,116950.0,0.09258766]
[1755883217501,0.4399594,116960.0,116950.0,0.08746]
[1755883217939,0.46413867,116960.0,116950.0,0.17232475]
[1755883218149,0.80413867,116960.0,116950.0,0.17232475]
[1755883218367,0.7809594,116960.0,116950.0,0.17232475]
[1755883218816,0.9728194,116960.0,116950.0,0.17434475]
[1755883219032,0.9728194,116960.0,116950.0,0.17733475]
[1755883219470,0.6348094,116960.0,116950.0,0.17232475]
[1755883220129,1.0751488,116960.0,116950.0,0.17232475]
[1755883220379,1.50201845,116960.0,116950.0,0.17232475]
[1755883220818,1.50201845,116960.0,116950.0,0.08544]
[1755883221046,0.9748094,116960.0,116950.0,0.08544]
[1755883221535,0.6348094,116960.0,116950.0,0.16032475]
[1755883221754,0.6328194,116960.0,116950.0,0.16533475]
[1755883221981,0.6348494,116960.0,116950.0,0.08688475]
[1755883222412,0.6328194,116960.0,116950.0,0.09189475]
[1755883222862,0.001,116960.0,116950.0,0.29189475]
[1755883223066,0.001,116960.0,116950.0,0.38823128]
[1755883223301,0.001,116960.0,116950.0,0.6002403]
[1755883223817,0.001,116960.0,116950.0,0.63808264]
[1755883224275,0.07064953,116970.0,116950.0,0.56743311]
[1755883224512,0.4379794,116960.0,116950.0,0.22587409]
[1755883224758,0.4379794,116960.0,116950.0,0.22987409]
[1755883225219,0.1944,116980.0,116950.0,0.23286409]
[1755883225423,0.4379794,116970.0,116960.0,0.00299]
[1755883225625,0.4379794,116970.0,116960.0,0.08058748]
[1755883225836,0.7779794,116980.0,116970.0,0.00299]
[1755883226044,0.00237,117010.0,116970.0,0.36533475]
[1755883226256,0.4379794,116990.0,116980.0,0.08688475]
[1755883226466,0.19512,117000.0,116980.0,0.16960897]
[1755883226674,0.4379794,116990.0,116980.0,0.16747186]
[1755883227091,0.195,117010.0,116980.0,0.16795315]
[1755883227303,0.195,117010.0,116990.0,0.00299]
[1755883227544,0.195,117010.0,117000.0,0.09189475]
[1755883227545,0.4379794,117010.0,117000.0,0.09189475]
[1755883227671,0.4379794,117010.0,117000.0,0.0940315]
[1755883227888,0.4379794,117010.0,117000.0,0.1674715]
[1755883228285,0.4400094,117010.0,117000.0,0.16032475]
[1755883228490,0.50677427,117010.0,117000.0,0.16032475]
[1755883228768,0.4429894,117010.0,117000.0,0.16032475]
[1755883229177,0.8809688,117010.0,117000.0,0.07344]
[1755883229380,0.8819688,117010.0,117000.0,0.07344]
[1755883229582,0.34601,117010.0,117000.0,0.07344]
[1755883229785,1.2219688,117010.0,117000.0,0.07344]
[1755883229905,1.2209688,117010.0,117000.0,0.07344]
[1755883230106,0.7829894,117010.0,117000.0,0.07344]
[1755883230316,0.7849894,117010.0,117000.0,0.07344]
[1755883230954,1.30983845,117010.0,117000.0,0.07344]
[1755883231562,1.2229688,117010.0,117000.0,0.07344]
[1755883233836,1.2486538,117010.0,116980.0,0.00048129]
[1755883234080,0.6328194,117000.0,116980.0,0.09039604]
[1755883234228,0.4379794,116990.0,116980.0,0.09039604]
[1755883234432,0.4379794,116990.0,116980.0,0.09241604]
[1755883235171,0.4399394,116990.0,116980.0,0.08736604]
[1755883235365,0.4399394,116990.0,116980.0,0.16080604]
[1755883235524,0.19484,117000.0,116980.0,0.16282604]
[1755883235733,0.19484,117000.0,116980.0,0.16585604]
[1755883236065,0.4379794,116990.0,116980.0,0.16585604]
[1755883236750,0.025685,117010.0,116980.0,0.16585604]
[1755883236956,0.4379794,117020.0,116990.0,0.78766824]
[1755883237223,0.4403494,117050.0,117010.0,0.0476105]
[1755883237372,0.4379794,117020.0,117010.0,0.12318706]
[1755883237572,0.53432,117040.0,117020.0,0.00303]
[1755883237788,0.4379794,117030.0,117020.0,0.07647]
[1755883237991,0.4379794,117030.0,117020.0,0.07849]
[1755883238215,0.4379794,117030.0,117020.0,0.16537475]
[1755883239642,0.19632,117040.0,117020.0,0.16537475]
[1755883239843,0.4379794,117030.0,117020.0,0.16537475]
[1755883239992,0.4379794,117030.0,117020.0,0.16751113]
[1755883240202,0.4379794,117030.0,117020.0,0.16537475]
[1755883240411,0.003,117030.0,117020.0,0.21310163]
[1755883240600,0.003,117030.0,117020.0,0.22841427]
[1755883240801,0.003,117030.0,117020.0,0.18282377]
[1755883241243,0.001,117030.0,117020.0,0.18282377]
[1755883241483,0.4389794,117030.0,117020.0,0.22835495]
[1755883241678,0.001,117030.0,117020.0,0.21090593]
[1755883241905,0.4389794,117030.0,117020.0,0.21090593]
[1755883242112,0.4389794,117030.0,117020.0,0.2205718]
[1755883242319,0.4389794,117030.0,117020.0,0.23757693]
[1755883242533,0.0121443,117040.0,117020.0,0.21190593]
[1755883242772,0.4379794,117030.0,117020.0,0.12299118]
[1755883242991,0.4379794,117030.0,117020.0,0.12512756]
[1755883243371,0.4379794,117030.0,117020.0,0.12715756]
[1755883243584,0.4379794,117030.0,117020.0,0.12615756]
[1755883243997,0.4379794,117030.0,117020.0,0.12402118]
[1755883244420,0.4379794,117030.0,117020.0,0.12715756]
[1755883244832,0.0121443,117040.0,117020.0,0.12502118]
[1755883245036,0.4501237,117040.0,117030.0,0.08688475]
[1755883245227,0.4520837,117040.0,117030.0,0.08688475]
[1755883245456,0.4520837,117040.0,117030.0,0.16032475]
[1755883245608,0.4544537,117040.0,117030.0,0.16032475]
[1755883245808,0.4544537,117040.0,117030.0,0.07344]
[1755883246218,0.0164743,117040.0,117030.0,0.07344]
[1755883246424,0.0141043,117040.0,117030.0,0.16032475]
[1755883246650,0.4520837,117040.0,117030.0,0.16032475]
[1755883246859,0.4501237,117040.0,117030.0,0.16537475]
[1755883247197,0.6454437,117040.0,117030.0,0.16032475]
[1755883247603,0.6488137,117040.0,117030.0,0.16032475]
[1755883247825,0.6478137,117040.0,117030.0,0.16032475]
[1755883248075,1.07468335,117040.0,117030.0,0.07344]
[1755883248306,0.9888137,117040.0,117030.0,0.07344]
[1755883249013,0.9888137,117040.0,116990.0,0.11921071]
[1755883249213,0.5508343,117040.0,117000.0,0.08688475]
[1755883249394,0.00237,117030.0,117000.0,0.08688475]
[1755883249594,0.19276,117020.0,117010.0,0.07064953]
[1755883249806,0.19472,117020.0,117010.0,0.15753428]
[1755883250380,0.6326994,117020.0,117010.0,0.23097428]
[1755883250605,0.19472,117020.0,117010.0,0.23299428]
[1755883250807,0.6307394,117020.0,117010.0,0.23097428]
[1755883250997,0.6307394,117020.0,117010.0,0.16032475]
[1755883251299,0.6317394,117020.0,117010.0,0.16032475]
[1755883251776,0.65934415,117020.0,117010.0,0.16032475]
[1755883251994,0.19476,117020.0,117010.0,0.16032475]
[1755883252632,0.002,117020.0,117010.0,0.16246131]
[1755883252905,0.4399794,117020.0,117010.0,0.16246131]
[1755883253120,0.4399794,117020.0,117010.0,0.16032475]
[1755883253329,0.002,117020.0,117010.0,0.16032475]
[1755883253531,0.4399794,117020.0,117010.0,0.16032475]
[1755883254415,0.4399794,117020.0,117010.0,0.20799249]
[1755883254416,0.002,117020.0,117010.0,0.20799249]
[1755883254630,0.002,117020.0,117010.0,0.23097428]
[1755883254828,0.002,117020.0,117010.0,0.27662344]
[1755883255030,0.002,117020.0,117010.0,0.23097428]
[1755883255229,0.4399794,117020.0,117010.0,0.27662552]
[1755883255429,0.4389794,117020.0,117010.0,0.27664143]
[1755883255842,0.4389794,117020.0,117010.0,0.54614143]
[1755883255843,0.4379794,117020.0,117010.0,0.54614143]
[1755883256077,0.4379794,117020.0,117010.0,0.54714143]
[1755883256284,0.4379794,117020.0,117010.0,0.4754919]
[1755883256483,0.4379794,117020.0,117010.0,0.42882475]
[1755883256696,0.6298994,117020.0,117010.0,0.42882475]
[1755883256876,0.6298994,117020.0,117010.0,0.47449564]
[1755883257674,0.20392,117020.0,117010.0,0.47449564]
[1755883257848,0.6418994,117020.0,117010.0,0.47449564]
[1755883258046,0.6418994,117020.0,117010.0,0.34194]
[1755883258258,0.70608934,117020.0,117010.0,0.34194]
[1755883258455,0.6418994,117020.0,117010.0,0.34194]
[1755883259242,0.9818994,117020.0,117010.0,0.07344]
[1755883259447,0.9848994,117020.0,117010.0,0.07344]
[1755883259650,0.9837394,117020.0,117010.0,0.07344]
[1755883259837,0.9817394,117020.0,117010.0,0.07344]
[1755883260419,1.06860905,117020.0,117010.0,0.07344]
[1755883261179,1.50758845,117020.0,117010.0,0.07344]
[1755883262370,1.61192222,117020.0,117010.0,0.07344]
[1755883264382,1.52505257,117020.0,117010.0,0.07344]
[1755883264807,0.7919794,117020.0,117010.0,0.07344]
[1755883265020,0.9814194,117020.0,117010.0,0.07344]
[1755883265507,1.4193988,117020.0,117010.0,0.07344]
[1755883266256,1.52373257,117020.0,117010.0,0.07344]
[1755883266460,1.71060222,117020.0,117010.0,0.07344]
[1755883266871,0.34,117010.0,116970.0,0.11632042]
[1755883267050,0.4379794,116980.0,116970.0,0.20320517]
[1755883267255,0.6275394,116980.0,116970.0,0.20320517]
[1755883268255,0.6275394,116980.0,116970.0,0.20368646]
[1755883268461,0.6275394,116980.0,116970.0,0.27712646]
[1755883268690,0.6285394,116980.0,116970.0,0.27712646]
[1755883269725,0.6295394,116980.0,116970.0,0.27712646]
[1755883270158,0.002,116980.0,116970.0,0.27712646]
[1755883270737,0.002,116980.0,116970.0,0.43145557]
[1755883270951,0.001,116980.0,116970.0,0.49239665]
[1755883271382,0.001,116980.0,116970.0,0.42274712]
[1755883271383,0.4379794,116980.0,116970.0,0.42274712]
[1755883272184,0.46121929,116980.0,116970.0,0.42274712]
[1755883272389,0.4379794,116980.0,116970.0,0.42274712]
[1755883272588,0.4379794,116980.0,116970.0,0.22274712]
[1755883272836,0.4379794,116980.0,116970.0,0.20647175]
[1755883273263,0.4379794,116980.0,116970.0,0.21047175]
[1755883273676,0.00836999,116990.0,116970.0,0.20847175]
[1755883273883,0.4379794,116980.0,116970.0,0.21147175]
[1755883274503,0.6286194,116980.0,116970.0,0.21147175]
[1755883274704,0.6286194,116980.0,116970.0,0.20947175]
[1755883275003,0.6286194,116980.0,116970.0,0.21047175]
[1755883276249,0.19064,116980.0,116970.0,0.21047175]
[1755883276630,0.6286194,116980.0,116970.0,0.16480604]
[1755883277088,0.6286194,116980.0,116970.0,0.16380604]
[1755883277296,0.6286194,116980.0,116970.0,0.20951168]
[1755883277497,0.4379794,116980.0,116970.0,0.20951168]
[1755883277622,0.4379794,116980.0,116970.0,0.21151168]
[1755883278246,0.4379794,116980.0,116970.0,0.20651168]
[1755883278463,0.1986383,116990.0,116970.0,0.16080604]
[1755883278666,0.002,116980.0,116970.0,0.16080604]
[1755883278880,0.4379794,116980.0,116970.0,0.16080604]
[1755883281348,0.48869403,116980.0,116970.0,0.11963949]
[1755883281546,0.48969403,116980.0,116970.0,0.11963949]
[1755883281750,0.48869403,116980.0,116970.0,0.11963949]
[1755883281951,0.1892,116980.0,116970.0,0.20652424]
[1755883282157,0.6271794,116980.0,116970.0,0.20652424]
[1755883282491,0.6271794,116980.0,116970.0,0.16080604]
[1755883282685,0.6267794,116980.0,116970.0,0.22388442]
[1755883282847,0.6267794,116980.0,116970.0,0.22174712]
[1755883283264,0.6267794,116980.0,116970.0,0.16080604]
[1755883283471,0.6267794,116980.0,116970.0,0.20652953]
[1755883283692,0.6267794,116980.0,116970.0,0.16080604]
[1755883284007,0.6267794,116980.0,116970.0,0.07392129]
[1755883284008,0.69031437,116980.0,116970.0,0.07392129]
[1755883284834,0.1888,116980.0,116970.0,0.11965411]
[1755883285038,0.6267794,116980.0,116970.0,0.11965411]
[1755883285671,0.9667794,116980.0,116970.0,0.11965411]
[1755883286118,1.05366415,116980.0,116970.0,0.07392129]
[1755883286318,0.9517338,116980.0,116970.0,0.07392129]
[1755883286452,1.1395338,116980.0,116970.0,0.07392129]
[1755883286661,0.42686965,116980.0,116970.0,0.07392129]
[1755883286876,0.9657794,116980.0,116970.0,0.07392129]
[1755883287059,0.7779794,116980.0,116970.0,0.07392129]
[1755883287316,0.9655794,116980.0,116970.0,0.07392129]
[1755883288074,0.5276,116980.0,116970.0,0.07392129]
[1755883288270,0.9655794,116980.0,116970.0,0.07392129]
[1755883288622,1.05244905,116980.0,116970.0,0.07392129]
[1755883288831,0.61446965,116980.0,116970.0,0.07392129]
[1755883289032,0.7779794,116980.0,116970.0,0.07392129]
[1755883289197,0.9651394,116980.0,116970.0,0.07392129]
[1755883289424,0.9651394,116980.0,116970.0,0.11965411]
[1755883290374,0.9651394,116980.0,116970.0,0.07392129]
[1755883290594,1.05200905,116980.0,116970.0,0.07392129]
[1755883290778,0.52716,116980.0,116970.0,0.07392129]
[1755883291029,0.7779794,116980.0,116970.0,0.07392129]
[1755883291240,0.9649794,116980.0,116970.0,0.07392129]
[1755883291658,0.9649794,116980.0,116970.0,0.11965411]
[1755883294518,0.527,116980.0,116970.0,0.07392129]
[1755883294718,0.9649794,116980.0,116970.0,0.07392129]
[1755883296062,0.527,116980.0,116970.0,0.07392129]
[1755883296268,0.9649794,116980.0,116970.0,0.07392129]
[1755883298178,1.05184905,116980.0,116970.0,0.07392129]
[1755883299028,1.05184905,116980.0,116970.0,0.11965411]
[1755883299618,0.9649794,116980.0,116970.0,0.07392129]
[1755883300740,0.527,116980.0,116970.0,0.07392129]
[1755883300959,0.9649794,116980.0,116970.0,0.07392129]
[1755883301994,1.05186415,116980.0,116970.0,0.07392129]
[1755883302726,0.61388475,116980.0,116970.0,0.00048129]
[1755883302956,1.13122565,116980.0,116970.0,0.00048129]
[1755883303462,1.16091965,116980.0,116970.0,0.00048129]
[1755883303705,1.15891965,116980.0,116970.0,0.00048129]
[1755883303929,1.07755815,116980.0,116970.0,0.07428129]
[1755883304126,1.08055815,116980.0,116970.0,0.07428129]
[1755883304507,0.64257875,116980.0,116970.0,0.07428129]
[1755883304686,1.08355815,116980.0,116970.0,0.07428129]
[1755883304871,1.13534729,116980.0,116970.0,0.00048129]
[1755883305909,0.94834729,116980.0,116970.0,0.00048129]
[1755883306108,1.13230729,116980.0,116970.0,0.00048129]
[1755883306279,1.13630729,116980.0,116970.0,0.00048129]
[1755883306483,0.9669394,116980.0,116970.0,0.00048129]
[1755883306870,0.9679394,116980.0,116970.0,0.00048129]
[1755883307102,0.52996,116980.0,116970.0,0.00048129]
[1755883307318,0.9679394,116980.0,116970.0,0.00048129]
[1755883307527,0.9709394,116980.0,116970.0,0.00048129]
[1755883307698,0.9679394,116980.0,116970.0,0.00048129]
[1755883307909,1.05780905,116980.0,116970.0,0.00048129]
[1755883308476,1.61982965,116980.0,116970.0,0.00048129]
[1755883308677,2.05780905,116980.0,116970.0,0.00048129]
[1755883309238,2.05480905,116980.0,116970.0,0.00048129]
[1755883309448,2.05780905,116980.0,116970.0,0.00048129]
[1755883309686,2.1446938,116980.0,116970.0,0.00048129]
[1755883310110,2.1673878,116980.0,116970.0,0.00048129]
[1755883310319,2.2604078,116980.0,116970.0,0.00048129]
[1755883310519,2.1703878,116980.0,116970.0,0.00048129]
[1755883310746,2.08351815,116980.0,116970.0,0.00048129]
[1755883312382,2.54021475,116980.0,116970.0,0.00048129]
[1755883314567,1.64553875,116980.0,116970.0,0.00048129]
[1755883314793,1.980178,116980.0,116970.0,0.00048129]
[1755883314988,1.980178,116980.0,116970.0,0.04621411]
[1755883315548,1.980178,116980.0,116970.0,0.12001411]
[1755883315549,1.19284,116980.0,116970.0,0.12001411]
[1755883315692,1.453338,116980.0,116970.0,0.13522237]
[1755883315917,1.980138,116980.0,116970.0,0.13522237]
[1755883316095,1.977138,116980.0,116970.0,0.13522237]
[1755883316556,1.792338,116980.0,116970.0,0.13522237]
[1755883316687,1.979138,116980.0,116970.0,0.13522237]
[1755883316892,1.974138,116980.0,116970.0,0.13522237]
[1755883317316,1.976138,116980.0,116970.0,0.13522237]
[1755883317523,1.974138,116980.0,116970.0,0.13522237]
[1755883317723,1.0,116980.0,116970.0,0.22424442]
[1755883317928,1.635138,116980.0,116970.0,0.2370442]
[1755883318349,1.1878,116980.0,116970.0,0.2370442]
[1755883318590,1.1888,116980.0,116970.0,0.16116604]
[1755883318790,1.1888,116980.0,116970.0,0.2391815]
[1755883318991,1.1888,116980.0,116970.0,0.2370442]
[1755883319394,1.002,116980.0,116970.0,0.2370442]
[1755883319609,1.18876,116980.0,116970.0,0.2370442]
[1755883319851,1.002,116980.0,116970.0,0.2370442]
[1755883320016,1.18872,116980.0,116970.0,0.2370442]
[1755883320399,1.002,116980.0,116970.0,0.2370442]
[1755883321025,1.18872,116980.0,116970.0,0.2370442]
[1755883321262,1.62530937,116980.0,116970.0,0.2370442]
[1755883321596,1.62530937,116980.0,116970.0,0.16116604]
[1755883322411,1.18872,116980.0,116970.0,0.13536657]
[1755883322615,1.62530937,116980.0,116970.0,0.13536657]
[1755883325051,1.62522937,116980.0,116970.0,0.13536657]
[1755883325257,1.62518937,116980.0,116970.0,0.13536657]
[1755883325478,1.1886,116980.0,116970.0,0.13536657]
[1755883325683,1.62518937,116980.0,116970.0,0.13536657]
[1755883327297,1.62518937,116980.0,116970.0,0.07428129]
[1755883327717,1.62518937,116980.0,116970.0,0.12008745]
[1755883327944,1.96518937,116980.0,116970.0,0.12008745]
[1755883328177,2.05207412,116980.0,116970.0,0.07428129]
[1755883328823,2.12327412,116980.0,116970.0,0.07428129]
[1755883329332,2.14896812,116980.0,116970.0,0.07428129]
[1755883329539,2.23583777,116980.0,116970.0,0.07428129]
[1755883330237,2.273836,116980.0,116970.0,0.07428129]
[1755883332471,2.72787439,116980.0,116970.0,0.07428129]
[1755883332675,2.29128502,116980.0,116970.0,0.07428129]
[1755883333023,2.82787439,116980.0,116970.0,0.07428129]
[1755883333955,2.39128502,116980.0,116970.0,0.07428129]
[1755883334356,2.82787439,116980.0,116970.0,0.07428129]
[1755883335031,2.39128502,116980.0,116970.0,0.07428129]
[1755883335433,2.39128502,116980.0,116970.0,0.00048129]
[1755883335641,2.11781537,116980.0,116970.0,0.00048129]
[1755883336012,2.30413537,116980.0,116970.0,0.00048129]
[1755883336217,2.30313537,116980.0,116970.0,0.00048129]
[1755883336634,2.30713537,116980.0,116970.0,0.00048129]
[1755883337282,2.74372474,116980.0,116970.0,0.00048129]
[1755883337519,2.82959439,116980.0,116970.0,0.00048129]
[1755883337673,2.39700502,116980.0,116970.0,0.00048129]
[1755883338085,2.83359439,116980.0,116970.0,0.00048129]
[1755883338538,1.09951871,116970.0,116940.0,0.10117767]
[1755883338674,1.21317874,116950.0,116940.0,0.10132201]
[1755883338875,1.39941874,116950.0,116940.0,0.17512201]
[1755883339098,0.96282937,116950.0,116940.0,0.17512201]